Cogmind - Beta 13 @@@ ROGUE MODE // 2024.03.03 @ 12:52:46 Player: Kaz Result: Destroyed by G-47 Trooper with Particle Gun Performance ------------- Evolutions (0) 0 Regions Visited (1) 200 Robots Destroyed (10) 50 Value Destroyed (227) 227 Prototype IDs (0) 0 Alien Tech Used (0) 0 Bonus (0) 0 TOTAL SCORE: 477 Bonus ------- None Cogmind --------- Core Integrity 0/250 Matter 227/300 Energy 100/100 System Corruption 2% Temperature Cool (9) Movement Rolling (130) Ox2 Location -10/Materials Parts ------- > --- POWER (1) -------- (None) > --- PROPULSION (2) --- Compact Wheel > --- UTILITY (2) ------ High-capacity Storage Unit Propulsion Shielding > --- WEAPON (2) ------- Small Laser > --- INVENTORY (20) --- Small Storage Unit Medium Matter Pod (0) Small Laser Grenade Launcher Peak State ------------ > --- POWER ------------ Ion Engine > --- PROPULSION ------- Compact Wheel Compact Wheel > --- UTILITY ---------- Small Storage Unit Propulsion Shielding > --- WEAPON ----------- Assault Rifle Light Assault Rifle > --- INVENTORY -------- Medium Matter Pod Small Laser Grenade Launcher [Rating: 7] Favorites ----------- Power Ion Engine Engine Ion Engine Propulsion Compact Wheel Wheel Compact Wheel Utility Small Storage Unit Storage Small Storage Unit Protection Propulsion Shielding Weapon Light Assault Rifle Energy Gun Small Laser Ballistic Gun Light Assault Rifle Build | -11 -10 ------- Run | Yrd Mat Slots Evolved . | . . Power . | . . Propulsion . | . . Utility . | . . Weapon . | . . Parts Attached 11 | 6 5 Power 2 | 1 1 Engine 2 | 1 1 Core . | . . Reactor . | . . Propulsion 2 | 2 . Treads . | . . Leg . | . . Wheel 2 | 2 . Hover . | . . Flight . | . . Utility 3 | 1 2 Device . | . . Storage 2 | 1 1 Processor . | . . Hackware . | . . Protection 1 | . 1 Artifact . | . . Weapon 4 | 2 2 Energy Gun 1 | . 1 Energy Cannon . | . . Ballistic Gun 3 | 2 1 Ballistic Cannon . | . . Launcher . | . . Special Weapon . | . . Impact Weapon . | . . Slashing Weapon . | . . Piercing Weapon . | . . Special Melee Weapon . | . . Unidentified Prototypes . | . . Parts Lost 5 | . 5 Power 1 | . 1 Propulsion 1 | . 1 Utility . | . . Weapon 3 | . 3 Highest Loss Streak 5 | . 5 To Critical Strikes . | . . Average Slot Usage (%) 90 | . 90 Engine 11 | . 11 Wheel 26 | . 26 Storage 14 | . 14 Protection 9 | . 9 Energy Gun 1 | . 1 Ballistic Gun 24 | . 24 Naked Turns . | . . Heaviest Build 47 | 13 47 Greatest Support 32 | 32 32 Greatest Overweight (x) 2 | . 2 Average Overweight (x) . | . . Largest Inventory Capacity 20 | 8 20 Average Capacity 12 | 7 12 Most Carried 5 | . 5 Average Carried 2 | . 3 Final Capacity 20 | 8 20 Final Carried 4 | . 4 Class Distribution -------------------- 100% | Mutant Dominant Class ---------------- Mutant | -10/Materials Resources | -11 -10 ----------- Run | Yrd Mat Matter Collected 335 | 200 135 Remotely . | . . Salvage Created 237 | . 237 Parts 22 | . 22 Haulers Intercepted . | . . Recyclers Shooed 1 | . 1 Parts Field Recycled . | . . Retrieved Matter . | . . Parts Self-Destructed . | . . Prevented . | . . Kills | -11 -10 ------- Run | Yrd Mat Combat Hostiles Destroyed 7 | . 7 Guns 7 | . 7 Classes Destroyed 3 | . 3 Watcher 3 | . 3 Swarmer 3 | . 3 Grunt 4 | . 4 Best Kill Streak 4 | . 4 Combat Bots Only 3 | . 3 Max Kills in Single Turn 2 | . 2 Gunslinging 1 | . 1 Exploded . | . . Melee . | . . Uniques/NPCs Destroyed . | . . Combat | -11 -10 -------- Run | Yrd Mat Hostile Shots Fired 78 | . 78 Missed 10 | . 10 Damage Taken 791 | . 791 Core 258 | . 258 Absorbed by Shields . | . . Redirected to Shielding 24 | . 24 Core Remaining (%) 100 | 100 . Volleys Fired 47 | . 47 Largest 2 | . 2 Hottest 60 | . 60 Shots Fired 86 | . 86 Gun 86 | . 86 Cannon . | . . Launcher . | . . Special . | . . Kinetic 73 | . 73 Thermal 13 | . 13 Explosive . | . . Electromagnetic . | . . Robot Hit Streak 6 | . 6 Robot Miss Streak 5 | . 5 Penetration Max . | . . Secondary Targets 1 | . 1 Max Gunslinging Chain 1 | . 1 Shots Hit Robots 47 | . 47 Core Hits 19 | . 19 Critical Kills . | . . Critical Parts Destroyed 1 | . 1 Critical Strikes 1 | . 1 Destroy 1 | . 1 Melee Attacks . | . . Impact . | . . Slashing . | . . Piercing . | . . Sneak Attacks . | . . Combat Hostiles . | . . Follow-up Attacks . | . . Damage Inflicted 500 | . 500 Guns 496 | . 496 Cannons . | . . Explosions . | . . Melee . | . . Ramming 4 | . 4 Kinetic 419 | . 419 Thermal 77 | . 77 Explosive . | . . Electromagnetic . | . . Impact . | . . Slashing . | . . Piercing . | . . Highest Corruption 2 | . 2 Average Corruption 2 | . 2 Corruption Purged . | . . Corruption Blocked . | . . Overload Shots . | . . Overflow Damage . | . . Projectiles . | . . Explosions . | . . Melee . | . . Knockbacks . | . . Impact . | . . Kinetic . | . . Secondary . | . . Self-Inflicted Damage 2 | . 2 Shots . | . . Rammed 1 | . 1 Targets Rammed 1 | . 1 Kicked . | . . Crushed . | . . Highest Temperature 49 | . 49 Average Temperature 17 | . 17 Received Heat Transfer 426 | . 426 Siege Activations . | . . Robots Corrupted . | . . Combat Hostiles . | . . Parts Fried . | . . Impact Corruptions . | . . Robots Melted . | . . Combat Hostiles . | . . Parts Melted . | . . Heat Transferred 175 | . 175 Parts Sabotaged . | . . Parts Stolen . | . . Parts Stripped . | . . Power Chain Reactions . | . . Alert | -11 -10 ------- Run | Yrd Mat Peak Influence 221 | . 221 Initial . | . . Average 111 | . 126 Maximum Alert Level 1 | . 1 Low Security (%) 87 | 100 85 Level 1 12 | . 14 Level 2 . | . . Level 3 . | . . Level 4 . | . . Level 5 . | . . High Security . | . . Max Security . | . . Squads Dispatched 1 | . 1 Investigation . | . . Extermination . | . . Reinforcement 1 | . 1 Assault . | . . Garrison . | . . Intercept . | . . Searches Triggered . | . . Construction Impeded . | . . Haulers Reinforced . | . . Active Scanning Responses . | . . Cargo Convoy Interrupts . | . . Stealth | -11 -10 --------- Run | Yrd Mat Distress Signals 2 | . 2 Communications Jammed . | . . Distress Signals . | . . Times Spotted 14 | . 14 Peak Tracking Total 5 | . 5 Tactical Retreats . | . . Traps | -11 -10 ------- Run | Yrd Mat Traps Triggered 1 | . 1 Indirectly . | . . Trap Hack Attempts . | . . Triggered . | . . Disarmed . | . . Reprogrammed . | . . Reused . | . . Traps Extracted . | . . Installed . | . . Triggered . | . . Machines | -11 -10 ---------- Run | Yrd Mat Machines Disabled . | . . Max in Single Turn . | . . Machines Repaired . | . . Machines Dismantled . | . . Machines Sabotaged . | . . Overloaded Fab Kills . | . . Hacking | -11 -10 --------- Run | Yrd Mat Machines Accessed 1 | . 1 Terminals 1 | . 1 Fabricators . | . . Repair Stations . | . . Recycling Units . | . . Scanalyzers . | . . Garrison Access . | . . Total Hacks 1 | . 1 Successful 1 | . 1 Failed . | . . Catastrophic . | . . Database Lockouts . | . . Manual . | . . Terminals 1 | . 1 Fabricators . | . . Repair Stations . | . . Recycling Units . | . . Scanalyzers . | . . Garrison Access . | . . Terminal Hacks 1 | . 1 Hauler Manifests 1 | . 1 Fabricator Hacks . | . . Repair Station Hacks . | . . Recycling Unit Hacks . | . . Scanalyzer . | . . Garrison Access Hacks . | . . Unauthorized Hacks . | . . Terminals . | . . Fabricators . | . . Repair Stations . | . . Recycling Units . | . . Scanalyzers . | . . Garrison Access . | . . Data Cores Recovered . | . . Used . | . . Hacking Detections 1 | . 1 Full Trace Events . | . . Feedback Events . | . . Feedback Blocked . | . . Robot Schematics Acquired . | . . Robots Built . | . . Authchips . | . . Time . | . . Total Robot Build Rating . | . . Part Schematics Acquired . | . . Parts Built . | . . Authchips . | . . Time . | . . Total Part Build Rating . | . . Parts Repaired . | . . Time . | . . Parts Recycled . | . . Recycled Matter . | . . Retrieved Matter . | . . Retrieved Components . | . . Parts Scanalyzed . | . . Part Schematics Acquired . | . . Parts Damaged . | . . Bothacking | -11 -10 ------------ Run | Yrd Mat Used RIF Installer . | . . Robots Hacked . | . . Non-combat . | . . Combat . | . . Robot Hacks Applied . | . . Relay Couplers Released . | . . Fabnet Peak Effective % . | . . Robots Rewired . | . . Allies Hacked . | . . Hacks Repelled . | . . Allies | -11 -10 -------- Run | Yrd Mat Total Allies . | . . Largest Group . | . . Highest-Rated Group . | . . Highest-Rated Ally . | . . Total Orders . | . . Ally Attacks . | . . Total Damage . | . . Kills . | . . Allies Corrupted . | . . Allies Melted . | . . Intel | -11 -10 ------- Run | Yrd Mat Robot Analysis Total . | . . Derelict Logs Recovered . | . . Drone Launches . | . . Drone Recoveries . | . . Exploration | -11 -10 ------------- Run | Yrd Mat Turns Passed 409 | 47 362 Spaces Moved 246 | 40 206 Core 2 | 2 . Treads . | . . Legs . | . . Wheels 244 | 38 206 Hover . | . . Flight . | . . Fastest Speed 50 | 50 100 Average Speed 103 | 97 104 Slowest Speed 130 | 100 130 Overloaded Moves . | . . Propulsion Burnouts . | . . Robots Hopped . | . . Cave-ins Triggered . | . . Exploration Rate (%) 19 | 4 35 Regions Visited 1 Branch Regions . Pre-discovered Areas . | . . Known Exits Taken . | . . Unknown Exits Taken 1 | 1 . Scrap Searched . | . . Spaces Dug . | . . Terrain Destroyed . | . . Melee . | . . Projectile . | . . AOE . | . . Terrain Rammed . | . . Walls Destroyed . | . . Machines Disabled . | . . Actions | -11 -10 --------- Run | Yrd Mat Total 319 | 45 274 Wait 9 | . 9 Move 245 | 39 206 Hop . | . . Pick Up 5 | . 5 Fast Attach 7 | 6 1 Attach 2 | . 2 Detach . | . . Swap 2 | . 2 Drop 1 | . 1 Fire 47 | . 47 Melee . | . . Ram 1 | . 1 Kick . | . . Crush . | . . Escape Stasis . | . . Rewire . | . . Trap . | . . Miscellaneous . | . . Route ------- -11/Scrapyard -10/Materials (discovered 1 exit: [*Mat]) History --------- Turn | Location | Event 24 | -11/Scrapyard | Discovered new exit (range 15) 48 | -11/Scrapyard | Entered Materials 249 | -10/Materials | Discovered new exit (range 16) 303 | -10/Materials | Build established: Mutant 361 | -10/Materials | Core integrity fell below 50% 405 | -10/Materials | Core integrity fell below 20% 410 | -10/Materials | Destroyed by G-47 Trooper with Particle Gun Last Messages --------------- 00365_ R-06 Scavenger collects Lgt. Ion Engine. 00366_ Lgt. Assault Rifle destroyed. 00367_ K-01 Serf collects debris. 00370_ R-06 Scavenger collects Hover Unit. 00373_ U-05 Engineer sends out distress signal. 00376_ G-47 Trooper destroyed. 00376_ K-01 Serf collects debris. 00378_ G-34 Mercenary destroyed. 00379_ K-01 Serf collects debris. 00384_ Com. Wheel destroyed. 00384_ K-01 Serf collects debris. 00388_ Lgt. Assault Rifle destroyed. 00389_ G-34 Mercenary destroyed. 00389_ K-01 Serf collects debris. 00398_ Critical hit (Burn: +37). 00399_ K-01 Serf collects debris. 00402_ Critical hit (Burn: +37). 00406_ Slammed into K-01 Serf. 00407_ Acquired 35 matter. 00409_ Acquired Sml. Laser. Map ----- +----------------------------------------------------+ | ?????????????????????????????????????????????????? | | ?????????????????????????????????????????????????? | | ?????????????????????????????????????????????????? | | ?????????????????????????????????????????????????? | | ?????????????????????????????????????????????????? | | ?????????????????????????????????????????????????? | | ?????????????????????????????????????????????????? | | ?????????????????????????????????????????????????? | | ?????????????????????????????????????????????????? | | ????? ?????????????????????????????????????????? | | ???? ????????????????????????????????????????? | | ????# ????????????????????????????????????????? | | ????# #??????????????############ ####?????????? | | ????# #??????????????# ??????????? | | ????# #??????????????# ??????????????? | | ????# #??????????????# ??????????????????? | | ????# #??????????????# #?????????????????????? | | ????# #???############ ##????????????????????? | | ##### #???# # #????????????????????? | | ## #???# # #????????????????????? | | ## #???# + #????????????????????? | | ## ##??# # #????????????????????? | | # #??# # / #????????????????????? | | # #### ## k ##????????????????????? | | + + ##= #?????????????????????? | | # #### ##g@k#?????????????????????? | | # #??############% #?????????????????????? | | #######????????######!= #?????????????????????? | | ####??????????????# %*#?????????????????????? | | ??????????????????# #?????????????????????? | | ??????????????????# #?????????????????????? | | ??????????????????# ######?????????????????????? | | ??????????????????# o#??????????????????????????? | | #####?????????????# #??????????????????????????? | | ??????????????# ###########????????????????? | | ??????????????# # #????????????????? | | ??????????????# # #????????????????? | | ????????########^ ^# #????????????????? | | ????????# # # #????????????????? | | # #????????# """ + / #????????????????? | | # #?######## """ # # """"" #????????????????? | | # ### ## """ # # """"" #????????????????? | | ## # # """"" #????????????????? | | ## """ # ###########????????????????? | | ## """ + #??????????????????????????? | | ##+## ## """ # #??????????????????????????? | | ## ### # #??????????????????????????? | | "" ## #?# # #??????????????????????????? | | "" ## #?# # #??????????????????????????? | | "" ## #?# "T" # #??????????????????????????? | +----------------------------------------------------+ Best States ------------- Heat Dissipation 25 Energy Generation 10 Energy Capacity 250 Matter Stores 250 Matter Capacity 300 Sight Range 16 Terrain Scan Density 10 Propulsion Shielding 33 Evasion (%) 40 Item Schematics ----------------- None Robot Schematics ------------------ None Fabricated ------------ Nothing Alien Tech Used ----------------- None Achievements -------------- None Challenges ------------ None Game ------ Seed AccelerationBlastCanceller Manual? 0 Play Time 00:07:55 Cumulative 137.8 hours Start 2024.03.03 @ 12:48:05 End 2024.03.03 @ 12:52:46 Sessions 1 Manual Loads 0 Difficulty Rogue Special Mode None Game No. 88 Rogue 76 Adventurer 12 Explorer 0 Win Type - Total 1 Types 1/0/0/0/0/0/0/0/0 Lore% 19 Gallery% 36 Achievement% 29 Wizard Run 0 Options --------- Layout 1 ASCII 0 Keyboard 0 Movement Mouse Keybinds 0 Fullscreen 1 Font 32/SmallcapsGlow Map View 77x35 Zoom Use 0% Tactical HUD 1 Map Filters NONE Filters NONE Steam 1 RUN: 9f2b0fa7-5204-4acf-85c8-8b656d305666